[Event "Rapid Tournament (RAP)"]
[Site "Biel, Switzerland"]
[Date "2026.07.12"]
[Round "7.8"]
[White "Acs, Peter"]
[Black "Gautier, Anand"]
[Result "1-0"]
[TimeControl "15 + 5"]
[WhiteTitle "-"]
[BlackTitle "-"]
[WhiteFideId "708020"]
[BlackFideId "26010186"]
[WhiteElo "2474"]
[BlackElo "2223"]

1. e4 {[%clk 00:15:07]} {[%emt 00:00:02]} c5 {[%clk 00:15:09]} {[%emt
00:00:02]} 2. Nf3 {[%clk 00:15:08]} {[%emt 00:00:04]} d6 {[%clk 00:15:13]} 3.
c3 {[%clk 00:15:09]} {[%emt 00:00:04]} Nf6 {[%clk 00:15:15]} {[%emt 00:00:03]}
4. Bd3 {[%clk 00:15:11]} {[%emt 00:00:03]} Nc6 {[%clk 00:15:12]} {[%emt
00:00:08]} 5. Bc2 {[%clk 00:15:08]} {[%emt 00:00:09]} Bg4 {[%clk 00:14:56]}
{[%emt 00:00:21]} 6. h3 {[%clk 00:15:06]} {[%emt 00:00:07]} Bh5 {[%clk
00:14:53]} {[%emt 00:00:08]} 7. d4 {[%clk 00:15:03]} {[%emt 00:00:07]} Bxf3
{[%clk 00:13:21]} {[%emt 00:01:37]} 8. gxf3 {[%clk 00:14:14]} {[%emt 00:00:53]}
cxd4 {[%clk 00:11:44]} {[%emt 00:01:43]} 9. cxd4 {[%clk 00:14:13]} {[%emt
00:00:06]} e5 {[%clk 00:11:47]} {[%emt 00:00:02]} 10. Ba4 {[%clk 00:13:43]}
{[%emt 00:00:35]} exd4 {[%clk 00:10:40]} {[%emt 00:01:12]} 11. Qxd4 {[%clk
00:13:34]} {[%emt 00:00:14]} Be7 {[%clk 00:10:17]} {[%emt 00:00:28]} 12. Nc3
{[%clk 00:12:12]} {[%emt 00:01:27]} O-O {[%clk 00:10:17]} {[%emt 00:00:06]} 13.
Bxc6 {[%clk 00:11:45]} {[%emt 00:00:31]} bxc6 {[%clk 00:10:20]} {[%emt
00:00:01]} 14. Rg1 {[%clk 00:11:45]} {[%emt 00:00:05]} Kh8 {[%clk 00:08:41]}
{[%emt 00:01:45]} 15. Bg5 {[%clk 00:10:42]} {[%emt 00:01:08]} Qb6 {[%clk
00:08:29]} {[%emt 00:00:18]} 16. O-O-O {[%clk 00:09:48]} {[%emt 00:00:57]} Rab8
{[%clk 00:08:31]} {[%emt 00:00:03]} 17. Qxb6 {[%clk 00:09:05]} {[%emt
00:00:49]} axb6 {[%clk 00:08:11]} {[%emt 00:00:26]} 18. Ne2 {[%clk 00:08:29]}
{[%emt 00:00:40]} Rbd8 {[%clk 00:02:18]} {[%emt 00:05:57]} 19. Nd4 {[%clk
00:07:27]} {[%emt 00:01:07]} Ng8 {[%clk 00:01:38]} {[%emt 00:00:46]} 20. Be3
{[%clk 00:07:25]} {[%emt 00:00:07]} g6 {[%clk 00:00:58]} {[%emt 00:00:45]} 21.
Kb1 {[%clk 00:06:37]} {[%emt 00:00:54]} Rc8 {[%clk 00:01:00]} {[%emt 00:00:03]}
22. Rd3 {[%clk 00:06:28]} {[%emt 00:00:13]} Rfd8 {[%clk 00:00:23]} {[%emt
00:00:42]} 23. Rgd1 {[%clk 00:06:04]} {[%emt 00:00:28]} d5 {[%clk 00:00:23]}
{[%emt 00:00:05]} 24. Ne2 {[%clk 00:04:34]} {[%emt 00:01:35]} dxe4 {[%clk
00:00:27]} {[%emt 00:00:02]} 25. fxe4 {[%clk 00:04:36]} {[%emt 00:00:03]} c5
{[%clk 00:00:21]} {[%emt 00:00:11]} 26. Nc3 {[%clk 00:04:19]} {[%emt 00:00:21]}
Rxd3 {[%clk 00:00:08]} {[%emt 00:00:19]} 27. Rxd3 {[%clk 00:04:22]} {[%emt
00:00:02]} Bf8 {[%clk 00:00:09]} {[%emt 00:00:04]} 28. Rd7 {[%clk 00:03:32]}
{[%emt 00:00:55]} Kg7 {[%clk 00:00:13]} {[%emt 00:00:01]} 29. e5 {[%clk
00:03:18]} {[%emt 00:00:20]} Rc6 {[%clk 00:00:13]} {[%emt 00:00:04]} 30. Nd5
{[%clk 00:03:08]} {[%emt 00:00:15]} Re6 {[%clk 00:00:17]} {[%emt 00:00:02]} 31.
Bd2 {[%clk 00:02:40]} {[%emt 00:00:32]} Ne7 {[%clk 00:00:10]} {[%emt 00:00:12]}
32. Nc7 {[%clk 00:02:26]} {[%emt 00:00:19]} Rc6 {[%clk 00:00:14]} 33. Ne8+
{[%clk 00:02:10]} {[%emt 00:00:21]} Kg8 {[%clk 00:00:18]} {[%emt 00:00:01]} 34.
Bc3 {[%clk 00:01:52]} {[%emt 00:00:23]} Nf5 {[%clk 00:00:08]} {[%emt 00:00:15]}
35. Rd8 {[%clk 00:01:11]} {[%emt 00:00:45]} Re6 {[%clk 00:00:07]} {[%emt
00:00:07]} 36. Nc7 {[%clk 00:00:40]} {[%emt 00:00:36]} Rc6 {[%clk 00:00:11]}
{[%emt 00:00:01]} 37. Nd5 {[%clk 00:00:44]} {[%emt 00:00:02]} Re6 {[%clk
00:00:08]} {[%emt 00:00:08]} 38. a4 {[%clk 00:00:33]} {[%emt 00:00:16]} Nd4
{[%clk 00:00:11]} {[%emt 00:00:01]} 39. f4 {[%clk 00:00:37]} Ne2 {[%clk
00:00:07]} {[%emt 00:00:09]} 40. Bd2 {[%clk 00:00:22]} {[%emt 00:00:20]} Kg7
{[%clk 00:00:07]} {[%emt 00:00:05]} 41. Rb8 {[%clk 00:00:21]} {[%emt 00:00:06]}
c4 {[%clk 00:00:08]} {[%emt 00:00:05]} 42. Nxb6 {[%clk 00:00:17]} {[%emt
00:00:08]} c3 {[%clk 00:00:08]} {[%emt 00:00:05]} 43. bxc3 {[%clk 00:00:18]}
{[%emt 00:00:04]} Bc5 {[%clk 00:00:11]} {[%emt 00:00:02]} 44. Nd5 {[%clk
00:00:20]} {[%emt 00:00:02]} Ra6 {[%clk 00:00:13]} {[%emt 00:00:03]} 45. Nf6
{[%clk 00:00:17]} {[%emt 00:00:09]} Rxa4 {[%clk 00:00:08]} {[%emt 00:00:10]} 46.
f5 {[%clk 00:00:08]} {[%emt 00:00:14]} Nf4 {[%clk 00:00:08]} {[%emt 00:00:05]}
47. Rg8+ {[%clk 00:00:10]} {[%emt 00:00:03]} Kh6 {[%clk 00:00:12]} 48. h4
{[%clk 00:00:13]} {[%emt 00:00:02]} gxf5 {[%clk 00:00:07]} {[%emt 00:00:10]} 49.
Nd5 {[%clk 00:00:12]} {[%emt 00:00:07]} Kh5 {[%clk 00:00:06]} {[%emt 00:00:05]}
50. Nxf4+ {[%clk 00:00:14]} {[%emt 00:00:03]} Kxh4 {[%clk 00:00:10]} {[%emt
00:00:01]} 51. Be1+ {[%clk 00:00:18]} 1-0

[Event "Rapid Tournament (RAP)"]
[Site "Biel, Switzerland"]
[Date "2026.07.12"]
[Round "7.9"]
[White "Maier, Christian"]
[Black "Haimovich, Tal"]
[Result "1-0"]
[TimeControl "15 + 5"]
[WhiteTitle "-"]
[BlackTitle "-"]
[WhiteFideId "4601955"]
[BlackFideId "2801698"]
[WhiteElo "2314"]
[BlackElo "2245"]

1. e4 {[%clk 00:15:06]} {[%emt 00:00:02]} e5 {[%clk 00:15:08]} {[%emt
00:00:03]} 2. Nf3 {[%clk 00:15:10]} {[%emt 00:00:03]} Nc6 {[%clk 00:15:12]} 3.
Bb5 {[%clk 00:15:13]} a6 {[%clk 00:15:16]} {[%emt 00:00:02]} 4. Ba4 {[%clk
00:15:17]} d6 {[%clk 00:15:19]} {[%emt 00:00:03]} 5. Nc3 {[%clk 00:15:03]}
{[%emt 00:00:17]} Bd7 {[%clk 00:15:19]} {[%emt 00:00:06]} 6. O-O {[%clk
00:15:05]} {[%emt 00:00:03]} g6 {[%clk 00:15:09]} {[%emt 00:00:14]} 7. d4
{[%clk 00:13:59]} {[%emt 00:01:12]} b5 {[%clk 00:14:32]} {[%emt 00:00:42]} 8.
Bb3 {[%clk 00:13:33]} {[%emt 00:00:31]} Bg7 {[%clk 00:14:04]} {[%emt 00:00:33]}
9. dxe5 {[%clk 00:12:01]} {[%emt 00:01:37]} dxe5 {[%clk 00:13:14]} {[%emt
00:00:55]} 10. Qd5 {[%clk 00:10:27]} {[%emt 00:01:39]} Qe7 {[%clk 00:13:15]}
{[%emt 00:00:03]} 11. Bg5 {[%clk 00:10:28]} {[%emt 00:00:05]} f6 {[%clk
00:11:28]} {[%emt 00:01:52]} 12. Be3 {[%clk 00:10:31]} {[%emt 00:00:02]} Nh6
{[%clk 00:10:05]} {[%emt 00:01:28]} 13. Rad1 {[%clk 00:10:07]} {[%emt
00:00:29]} O-O-O {[%clk 00:09:37]} {[%emt 00:00:33]} 14. Qd2 {[%clk 00:07:30]}
{[%emt 00:02:42]} Ng4 {[%clk 00:09:23]} {[%emt 00:00:19]} 15. Nd5 {[%clk
00:07:27]} {[%emt 00:00:08]} Qf8 {[%clk 00:09:04]} {[%emt 00:00:23]} 16. a4
{[%clk 00:07:28]} {[%emt 00:00:05]} Nxe3 {[%clk 00:07:49]} {[%emt 00:01:19]} 17.
Qxe3 {[%clk 00:07:20]} {[%emt 00:00:13]} Kb7 {[%clk 00:06:42]} {[%emt
00:01:13]} 18. Ra1 {[%clk 00:06:54]} {[%emt 00:00:31]} b4 {[%clk 00:05:23]}
{[%emt 00:01:24]} 19. Rfd1 {[%clk 00:06:45]} {[%emt 00:00:14]} Na5 {[%clk
00:04:10]} {[%emt 00:01:18]} 20. Nd2 {[%clk 00:05:38]} {[%emt 00:01:12]} Bh6
{[%clk 00:03:33]} {[%emt 00:00:42]} 21. Qe2 {[%clk 00:05:18]} {[%emt 00:00:25]}
Bxd2 {[%clk 00:02:51]} {[%emt 00:00:47]} 22. Rxd2 {[%clk 00:05:14]} {[%emt
00:00:09]} Nxb3 {[%clk 00:02:46]} {[%emt 00:00:10]} 23. cxb3 {[%clk 00:05:17]}
{[%emt 00:00:02]} Be6 {[%clk 00:02:39]} {[%emt 00:00:11]} 24. Rad1 {[%clk
00:04:42]} {[%emt 00:00:41]} c6 {[%clk 00:01:58]} {[%emt 00:00:46]} 25. Nxb4
{[%clk 00:04:34]} {[%emt 00:00:13]} Ra8 {[%clk 00:01:22]} {[%emt 00:00:41]} 26.
Rd6 {[%clk 00:04:26]} {[%emt 00:00:13]} Qf7 {[%clk 00:00:58]} {[%emt 00:00:29]}
27. Nxc6 {[%clk 00:04:23]} {[%emt 00:00:08]} Kc7 {[%clk 00:00:45]} {[%emt
00:00:18]} 28. Qd2 {[%clk 00:03:31]} {[%emt 00:00:56]} Rac8 {[%clk 00:00:41]}
{[%emt 00:00:10]} 29. Qa5+ {[%clk 00:02:54]} {[%emt 00:00:42]} Kb7 {[%clk
00:00:43]} {[%emt 00:00:02]} 30. Nd8+ {[%clk 00:02:52]} {[%emt 00:00:07]} 1-0

[Event "Rapid Tournament (RAP)"]
[Site "Biel, Switzerland"]
[Date "2026.07.12"]
[Round "7.10"]
[White "Filipovic, Branko"]
[Black "Kukushkin, Ivan"]
[Result "1-0"]
[TimeControl "15 + 5"]
[WhiteTitle "-"]
[BlackTitle "-"]
[WhiteFideId "14507951"]
[BlackFideId "11634103"]
[WhiteElo "2279"]
[BlackElo "2186"]

1. d4 {[%clk 00:15:07]} {[%emt 00:00:02]} d5 {[%clk 00:15:09]} {[%emt
00:00:03]} 2. Bf4 {[%clk 00:15:07]} {[%emt 00:00:03]} Nf6 {[%clk 00:15:13]}
{[%emt 00:00:02]} 3. Nf3 {[%clk 00:15:11]} {[%emt 00:00:03]} Bf5 {[%clk
00:15:14]} {[%emt 00:00:02]} 4. c4 {[%clk 00:14:45]} {[%emt 00:00:31]} e6
{[%clk 00:15:06]} {[%emt 00:00:13]} 5. Qb3 {[%clk 00:14:40]} {[%emt 00:00:09]}
Qc8 {[%clk 00:15:01]} {[%emt 00:00:11]} 6. Nc3 {[%clk 00:14:29]} {[%emt
00:00:16]} c6 {[%clk 00:15:00]} {[%emt 00:00:05]} 7. cxd5 {[%clk 00:14:12]}
{[%emt 00:00:22]} exd5 {[%clk 00:14:09]} {[%emt 00:00:56]} 8. Rc1 {[%clk
00:14:10]} {[%emt 00:00:06]} Na6 {[%clk 00:13:12]} {[%emt 00:01:03]} 9. e3
{[%clk 00:10:09]} {[%emt 00:04:06]} Nc7 {[%clk 00:11:37]} {[%emt 00:01:40]} 10.
h3 {[%clk 00:08:44]} {[%emt 00:01:30]} Be7 {[%clk 00:10:59]} {[%emt 00:00:43]}
11. Be2 {[%clk 00:08:22]} {[%emt 00:00:27]} Ne4 {[%clk 00:10:35]} {[%emt
00:00:29]} 12. O-O {[%clk 00:07:21]} {[%emt 00:01:06]} O-O {[%clk 00:10:27]}
{[%emt 00:00:13]} 13. Bxc7 {[%clk 00:07:16]} {[%emt 00:00:10]} Nxc3 {[%clk
00:10:23]} {[%emt 00:00:08]} 14. Rxc3 {[%clk 00:05:56]} {[%emt 00:01:25]} Qxc7
{[%clk 00:10:25]} {[%emt 00:00:04]} 15. Qxd5 {[%clk 00:05:52]} {[%emt
00:00:09]} Be6 {[%clk 00:10:09]} {[%emt 00:00:20]} 16. Qe4 {[%clk 00:05:38]}
{[%emt 00:00:18]} Bxa2 {[%clk 00:07:57]} {[%emt 00:02:19]} 17. b3 {[%clk
00:05:38]} {[%emt 00:00:05]} Bb4 {[%clk 00:07:12]} {[%emt 00:00:49]} 18. Rc4
{[%clk 00:04:52]} {[%emt 00:00:51]} Qa5 {[%clk 00:04:12]} {[%emt 00:03:06]} 19.
Ra1 {[%clk 00:04:54]} {[%emt 00:00:02]} Bc3 {[%clk 00:03:05]} {[%emt 00:01:13]}
20. Rxc3 {[%clk 00:04:30]} {[%emt 00:00:29]} Qxc3 {[%clk 00:03:08]} {[%emt
00:00:02]} 21. Rxa2 {[%clk 00:04:34]} Qxb3 {[%clk 00:03:09]} {[%emt 00:00:05]}
22. Rc2 {[%clk 00:03:20]} {[%emt 00:01:18]} a5 {[%clk 00:02:24]} {[%emt
00:00:51]} 23. Ng5 {[%clk 00:03:03]} {[%emt 00:00:21]} g6 {[%clk 00:02:23]}
{[%emt 00:00:06]} 24. Bc4 {[%clk 00:02:57]} {[%emt 00:00:11]} Qb1+ {[%clk
00:02:08]} {[%emt 00:00:21]} 25. Kh2 {[%clk 00:02:59]} {[%emt 00:00:03]} a4
{[%clk 00:01:42]} {[%emt 00:00:31]} 26. Qe7 {[%clk 00:02:49]} {[%emt 00:00:15]}
Rae8 {[%clk 00:01:20]} {[%emt 00:00:27]} 27. Bxf7+ {[%clk 00:02:50]} {[%emt
00:00:04]} Kg7 {[%clk 00:01:21]} {[%emt 00:00:04]} 28. Bxe8+ {[%clk 00:02:52]}
{[%emt 00:00:02]} 1-0

[Event "Rapid Tournament (RAP)"]
[Site "Biel, Switzerland"]
[Date "2026.07.12"]
[Round "7.12"]
[White "Tkhoruk, Roman"]
[Black "Amonatov, Farrukh"]
[Result "1/2-1/2"]
[TimeControl "15 + 5"]
[WhiteTitle "-"]
[BlackTitle "-"]
[WhiteFideId "34161589"]
[BlackFideId "14700077"]
[WhiteElo "2076"]
[BlackElo "2593"]

1. e4 {[%clk 00:15:08]} {[%emt 00:00:02]} c5 {[%clk 00:15:01]} {[%emt
00:00:09]} 2. Nf3 {[%clk 00:15:10]} {[%emt 00:00:02]} d6 {[%clk 00:15:05]}
{[%emt 00:00:02]} 3. Bb5+ {[%clk 00:15:13]} {[%emt 00:00:02]} Bd7 {[%clk
00:15:09]} {[%emt 00:00:02]} 4. Bxd7+ {[%clk 00:15:09]} {[%emt 00:00:08]} Qxd7
{[%clk 00:15:13]} {[%emt 00:00:02]} 5. O-O {[%clk 00:15:08]} {[%emt 00:00:05]}
Nc6 {[%clk 00:15:12]} {[%emt 00:00:06]} 6. d4 {[%clk 00:15:08]} {[%emt
00:00:05]} cxd4 {[%clk 00:15:15]} {[%emt 00:00:01]} 7. Nxd4 {[%clk 00:15:10]}
{[%emt 00:00:03]} Nf6 {[%clk 00:15:19]} 8. Nc3 {[%clk 00:14:56]} {[%emt
00:00:19]} e6 {[%clk 00:15:22]} {[%emt 00:00:02]} 9. Be3 {[%clk 00:14:35]}
{[%emt 00:00:27]} Be7 {[%clk 00:15:25]} {[%emt 00:00:02]} 10. f3 {[%clk
00:14:22]} {[%emt 00:00:18]} O-O {[%clk 00:15:27]} {[%emt 00:00:03]} 11. Qe2
{[%clk 00:14:18]} {[%emt 00:00:10]} d5 {[%clk 00:15:22]} {[%emt 00:00:09]} 12.
exd5 {[%clk 00:14:14]} {[%emt 00:00:10]} Nxd5 {[%clk 00:15:25]} {[%emt
00:00:01]} 13. Nxd5 {[%clk 00:14:05]} {[%emt 00:00:15]} Qxd5 {[%clk 00:15:28]}
{[%emt 00:00:02]} 14. Nxc6 {[%clk 00:13:58]} {[%emt 00:00:12]} Qxc6 {[%clk
00:15:31]} 15. c4 {[%clk 00:13:24]} {[%emt 00:00:40]} a5 {[%clk 00:15:11]}
{[%emt 00:00:25]} 16. b3 {[%clk 00:13:05]} {[%emt 00:00:24]} a4 {[%clk
00:15:12]} {[%emt 00:00:03]} 17. Rad1 {[%clk 00:13:00]} {[%emt 00:00:11]} h6
{[%clk 00:15:12]} {[%emt 00:00:04]} 18. Rd3 {[%clk 00:12:51]} {[%emt 00:00:15]}
Rfc8 {[%clk 00:15:00]} {[%emt 00:00:16]} 19. Rfd1 {[%clk 00:12:42]} {[%emt
00:00:14]} axb3 {[%clk 00:15:03]} {[%emt 00:00:02]} 20. axb3 {[%clk 00:12:46]}
{[%emt 00:00:02]} Ra3 {[%clk 00:14:42]} {[%emt 00:00:25]} 21. Qc2 {[%clk
00:11:57]} {[%emt 00:00:55]} Rca8 {[%clk 00:11:58]} {[%emt 00:02:48]} 22. Qc3
{[%clk 00:11:20]} {[%emt 00:00:43]} Ra2 {[%clk 00:11:13]} {[%emt 00:00:49]} 23.
R3d2 {[%clk 00:10:40]} {[%emt 00:00:46]} Bf6 {[%clk 00:10:16]} {[%emt
00:01:01]} 24. Rxa2 {[%clk 00:10:20]} {[%emt 00:00:26]} Rxa2 {[%clk 00:09:34]}
{[%emt 00:00:46]} 25. Qd3 {[%clk 00:10:20]} {[%emt 00:00:05]} Qc7 {[%clk
00:08:42]} {[%emt 00:00:57]} 26. Qd7 {[%clk 00:08:37]} {[%emt 00:01:49]} Qe5
{[%clk 00:08:22]} {[%emt 00:00:24]} 27. Qd4 {[%clk 00:07:20]} {[%emt 00:01:22]}
Qa5 {[%clk 00:05:49]} {[%emt 00:02:38]} 28. Qd3 {[%clk 00:07:10]} {[%emt
00:00:16]} Rb2 {[%clk 00:05:35]} {[%emt 00:00:17]} 29. Rb1 {[%clk 00:06:18]}
{[%emt 00:00:58]} Qc3 {[%clk 00:05:17]} {[%emt 00:00:23]} 30. Qxc3 {[%clk
00:05:57]} {[%emt 00:00:27]} Rxb1+ {[%clk 00:05:18]} {[%emt 00:00:03]} 31. Qc1
{[%clk 00:06:01]} {[%emt 00:00:02]} Rxc1+ {[%clk 00:05:21]} {[%emt 00:00:01]}
32. Bxc1 {[%clk 00:06:04]} {[%emt 00:00:03]} Kf8 {[%emt 00:00:24]} 33. Be3
{[%clk 00:04:23]} {[%emt 00:00:02]} Kg8 {[%clk 00:05:11]} 1/2-1/2

[Event "Rapid Tournament (RAP)"]
[Site "Biel, Switzerland"]
[Date "2026.07.12"]
[Round "7.13"]
[White "Shukhman, Anna"]
[Black "Haugner, Jan"]
[Result "1-0"]
[TimeControl "15 + 5"]
[WhiteTitle "-"]
[BlackTitle "-"]
[WhiteFideId "54180058"]
[BlackFideId "24655244"]
[WhiteElo "2272"]
[BlackElo "2079"]

1. e4 {[%clk 00:15:08]} {[%emt 00:00:02]} c5 {[%clk 00:15:08]} {[%emt
00:00:02]} 2. Nf3 {[%clk 00:15:11]} {[%emt 00:00:03]} d6 {[%clk 00:15:12]} 3.
d4 {[%clk 00:15:15]} cxd4 {[%clk 00:15:16]} {[%emt 00:00:01]} 4. Nxd4 {[%clk
00:15:19]} {[%emt 00:00:01]} Nf6 {[%clk 00:15:20]} {[%emt 00:00:01]} 5. Nc3
{[%clk 00:15:23]} {[%emt 00:00:03]} Bd7 {[%clk 00:15:24]} 6. f3 {[%clk
00:14:00]} {[%emt 00:01:26]} e5 {[%clk 00:15:28]} {[%emt 00:00:01]} 7. Nf5
{[%clk 00:13:50]} {[%emt 00:00:15]} Bxf5 {[%clk 00:14:38]} {[%emt 00:00:56]} 8.
exf5 {[%clk 00:13:54]} d5 {[%clk 00:14:40]} {[%emt 00:00:02]} 9. Bg5 {[%clk
00:13:45]} {[%emt 00:00:14]} d4 {[%clk 00:14:43]} {[%emt 00:00:02]} 10. Ne4
{[%clk 00:13:30]} {[%emt 00:00:20]} Nc6 {[%clk 00:13:48]} {[%emt 00:01:00]} 11.
Bc4 {[%clk 00:13:20]} {[%emt 00:00:15]} Bb4+ {[%clk 00:13:25]} {[%emt
00:00:29]} 12. Ke2 {[%clk 00:13:16]} {[%emt 00:00:08]} a6 {[%clk 00:11:59]}
{[%emt 00:01:31]} 13. Bxf6 {[%clk 00:13:00]} {[%emt 00:00:21]} gxf6 {[%clk
00:12:02]} {[%emt 00:00:02]} 14. Qd3 {[%clk 00:12:54]} {[%emt 00:00:11]} Rc8
{[%clk 00:11:14]} {[%emt 00:00:53]} 15. a3 {[%clk 00:12:40]} {[%emt 00:00:19]}
Be7 {[%clk 00:11:03]} {[%emt 00:00:16]} 16. Ba2 {[%clk 00:12:09]} {[%emt
00:00:36]} b5 {[%clk 00:09:57]} {[%emt 00:01:11]} 17. Rhd1 {[%clk 00:11:33]}
{[%emt 00:00:41]} Na5 {[%clk 00:08:59]} {[%emt 00:01:03]} 18. c3 {[%clk
00:09:01]} {[%emt 00:02:37]} Qd7 {[%clk 00:04:52]} {[%emt 00:04:12]} 19. cxd4
{[%clk 00:07:24]} {[%emt 00:01:43]} Nc4 {[%clk 00:04:21]} {[%emt 00:00:35]} 20.
Bxc4 {[%clk 00:07:07]} {[%emt 00:00:23]} bxc4 {[%clk 00:04:20]} {[%emt
00:00:05]} 21. Qc3 {[%clk 00:06:22]} {[%emt 00:00:50]} Qxf5 {[%clk 00:04:11]}
{[%emt 00:00:14]} 22. d5 {[%clk 00:06:25]} {[%emt 00:00:02]} Rb8 {[%clk
00:03:16]} {[%emt 00:01:00]} 23. d6 {[%clk 00:05:51]} {[%emt 00:00:39]} Bd8
{[%clk 00:03:05]} {[%emt 00:00:16]} 24. Rd2 {[%clk 00:04:42]} {[%emt 00:01:14]}
Rg8 {[%clk 00:02:24]} {[%emt 00:00:46]} 25. Kf1 {[%clk 00:03:54]} {[%emt
00:00:53]} Qh5 {[%clk 00:01:47]} {[%emt 00:00:42]} 26. Kg1 {[%clk 00:03:36]}
{[%emt 00:00:23]} Rg6 {[%clk 00:00:19]} {[%emt 00:01:34]} 27. Qxc4 {[%clk
00:02:18]} {[%emt 00:01:23]} Qxf3 {[%clk 00:00:14]} {[%emt 00:00:10]} 28. Rf1
{[%clk 00:02:22]} Qe3+ {[%clk 00:00:11]} {[%emt 00:00:07]} 29. Kh1 {[%clk
00:02:25]} {[%emt 00:00:02]} Ba5 {[%clk 00:00:07]} {[%emt 00:00:09]} 30. Re2
{[%clk 00:02:17]} {[%emt 00:00:13]} Qh6 {[%clk 00:00:11]} {[%emt 00:00:02]} 31.
d7+ {[%clk 00:02:05]} {[%emt 00:00:17]} Kd8 {[%clk 00:00:08]} {[%emt 00:00:08]}
32. Qxf7 {[%clk 00:02:04]} {[%emt 00:00:06]} 1-0

[Event "Rapid Tournament (RAP)"]
[Site "Biel, Switzerland"]
[Date "2026.07.12"]
[Round "7.14"]
[White "Xu, Chang(Cq)"]
[Black "Tureshbayev, Anuar"]
[Result "1-0"]
[TimeControl "15 + 5"]
[WhiteTitle "-"]
[BlackTitle "-"]
[WhiteFideId "8641757"]
[BlackFideId "651081709"]
[WhiteElo "2082"]
[BlackElo "2246"]

1. e4 {[%clk 00:15:06]} {[%emt 00:00:02]} c5 {[%clk 00:15:09]} {[%emt
00:00:01]} 2. Nf3 {[%clk 00:15:09]} {[%emt 00:00:02]} d6 {[%clk 00:15:13]}
{[%emt 00:00:02]} 3. d4 {[%clk 00:15:13]} {[%emt 00:00:01]} cxd4 {[%clk
00:15:17]} 4. Nxd4 {[%clk 00:15:15]} {[%emt 00:00:03]} Nf6 {[%clk 00:15:21]} 5.
Nc3 {[%clk 00:15:18]} {[%emt 00:00:02]} a6 {[%clk 00:15:26]} {[%emt 00:00:01]}
6. Bg5 {[%clk 00:15:21]} {[%emt 00:00:02]} Nbd7 {[%clk 00:15:29]} {[%emt
00:00:01]} 7. Qe2 {[%clk 00:15:23]} {[%emt 00:00:02]} e6 {[%clk 00:15:13]}
{[%emt 00:00:23]} 8. O-O-O {[%clk 00:15:06]} {[%emt 00:00:22]} Qc7 {[%clk
00:14:56]} {[%emt 00:00:22]} 9. f4 {[%clk 00:14:46]} {[%emt 00:00:24]} b5
{[%clk 00:14:44]} {[%emt 00:00:18]} 10. a3 {[%clk 00:14:34]} {[%emt 00:00:17]}
Bb7 {[%clk 00:14:44]} {[%emt 00:00:05]} 11. g4 {[%clk 00:13:44]} {[%emt
00:00:55]} Be7 {[%clk 00:14:21]} {[%emt 00:00:28]} 12. Bg2 {[%clk 00:13:40]}
{[%emt 00:00:08]} h6 {[%clk 00:14:14]} {[%emt 00:00:13]} 13. Bxf6 {[%clk
00:13:33]} {[%emt 00:00:11]} Bxf6 {[%clk 00:14:14]} {[%emt 00:00:05]} 14. Ndxb5
{[%clk 00:12:55]} {[%emt 00:00:44]} axb5 {[%clk 00:14:17]} {[%emt 00:00:02]} 15.
Nxb5 {[%clk 00:12:58]} {[%emt 00:00:02]} Qb6 {[%clk 00:14:20]} {[%emt
00:00:01]} 16. Nxd6+ {[%clk 00:12:34]} {[%emt 00:00:30]} Kf8 {[%clk 00:14:23]}
{[%emt 00:00:02]} 17. e5 {[%clk 00:11:51]} {[%emt 00:00:47]} Bxg2 {[%clk
00:14:02]} {[%emt 00:00:27]} 18. Qxg2 {[%clk 00:11:46]} {[%emt 00:00:09]} Rb8
{[%clk 00:14:04]} {[%emt 00:00:03]} 19. Nc4 {[%clk 00:11:37]} {[%emt 00:00:15]}
Qc7 {[%clk 00:13:46]} {[%emt 00:00:23]} 20. exf6 {[%clk 00:08:59]} {[%emt
00:02:42]} Qxc4 {[%clk 00:13:49]} {[%emt 00:00:03]} 21. Rxd7 {[%clk 00:07:33]}
{[%emt 00:01:31]} gxf6 {[%clk 00:13:46]} {[%emt 00:00:09]} 22. Kb1 {[%clk
00:06:46]} {[%emt 00:00:51]} Kg7 {[%clk 00:13:43]} {[%emt 00:00:07]} 23. g5
{[%clk 00:06:34]} {[%emt 00:00:18]} hxg5 {[%clk 00:13:15]} {[%emt 00:00:33]} 24.
fxg5 {[%clk 00:06:35]} {[%emt 00:00:03]} f5 {[%clk 00:13:19]} {[%emt 00:00:01]}
25. g6 {[%clk 00:06:35]} {[%emt 00:00:05]} Rhc8 {[%clk 00:11:43]} {[%emt
00:01:42]} 26. gxf7+ {[%clk 00:06:32]} {[%emt 00:00:07]} Kf6 {[%clk 00:11:38]}
{[%emt 00:00:11]} 27. f8=Q+ {[%clk 00:06:29]} {[%emt 00:00:08]} 1-0